Workbook

Sheet 评估结果汇总表
A1: 资产评估结果汇总表
A2: 评估基准日：2021年7月20日
A3: 委托评估单位：三明福银高速公路有限责任公司 | G3: 金额单位：人民币元
A4: 序号 | B4: 所属单位 | C4: 项目名称 | D4: 数量（台/套/个） | E4: 账面原值 | F4: 净值 | G4: 评估值 | H4: 备注
A5: 1 | B5: 三明福银高速公路有限责任公司（一期） | C5: 动态汽车衡（称台） | D5: =称台结果表!H18 -> 23 | E5: =称台结果表!K18 -> 2,274,358.68 | F5: =称台结果表!L18 -> 101,872.76 | G5: =称台结果表!N18 -> 107,100
C6: 机电设备 | D6: =机电设备结果表!H193 -> 2539 | E6: =机电设备结果表!K193 -> 12,769,420.97 | F6: =机电设备结果表!L193 -> 383,782.63 | G6: =机电设备结果表!M193 -> 270,080
A7: 小计 | D7: =SUM(D5:D6) -> 2562 | E7: =SUM(E5:E6) -> 15,043,779.65 | F7: =SUM(F5:F6) -> 485,655.39 | G7: =SUM(G5:G6) -> 377,180
A8: 2 | B8: 三明福银高速公路有限责任公司（二期） | C8: 动态汽车衡（称台） | D8: =称台结果表!H23 -> 5 | E8: =称台结果表!K23 -> 550,000.00 | F8: =称台结果表!L23 -> 16,500.00 | G8: =称台结果表!N23 -> 19,800
C9: 机电设备 | D9: =机电设备结果表!H260 -> 1353 | E9: =机电设备结果表!K260 -> 5,664,085.00 | F9: =机电设备结果表!L260 -> 172,022.55 | G9: =机电设备结果表!M260 -> 184,575
A10: 小计 | D10: =SUM(D8:D9) -> 1358 | E10: =SUM(E8:E9) -> 6,214,085.00 | F10: =SUM(F8:F9) -> 188,522.55 | G10: =SUM(G8:G9) -> 204,375
A11: 3 | B11: 三明建泰高速公路有限责任公司 | C11: 动态汽车衡（称台） | D11: =称台结果表!H31 -> 8 | E11: =称台结果表!K31 -> 1,810,199.38 | F11: =称台结果表!L31 -> 170,808.13 | G11: =称台结果表!N31 -> 34,200
C12: 机电设备 | D12: =机电设备结果表!H290 -> 74 | E12: =机电设备结果表!K290 -> 273,224.77 | F12: =机电设备结果表!L290 -> 21,704.79 | G12: =机电设备结果表!M290 -> 1,962
A13: 小计 | D13: =SUM(D11:D12) -> 82 | E13: =SUM(E11:E12) -> 2,083,424.15 | F13: =SUM(F11:F12) -> 192,512.93 | G13: =SUM(G11:G12) -> 36,162
A14: 4 | B14: 三明泉三高速公路有限责任公司 | C14: 动态汽车衡（称台） | D14: =称台结果表!H41 -> 15 | E14: =称台结果表!K41 -> 1,516,150.76 | F14: =称台结果表!L41 -> 131,760.08 | G14: =称台结果表!N41 -> 60,000
C15: 机电设备 | D15: =机电设备结果表!H516 -> 2986 | E15: =机电设备结果表!K516 -> 15,244,913.51 | F15: =机电设备结果表!L516 -> 558,760.40 | G15: =机电设备结果表!M516 -> 188,378
A16: 小计 | D16: =SUM(D14:D15) -> 3001 | E16: =SUM(E14:E15) -> 16,761,064.27 | F16: =SUM(F14:F15) -> 690,520.49 | G16: =SUM(G14:G15) -> 248,378
A17: 5 | B17: 三明永武高速公路有限责任公司 | C17: 动态汽车衡（称台） | D17: =称台结果表!H44 -> 2 | E17: =称台结果表!K44 -> 397,568.02 | F17: =称台结果表!L44 -> 11,927.04 | G17: =称台结果表!N44 -> 10,800
C18: 机电设备 | D18: =机电设备结果表!H634 -> 1034 | E18: =机电设备结果表!K634 -> 3,826,143.38 | F18: =机电设备结果表!L634 -> 119,700.97 | G18: =机电设备结果表!M634 -> 33,767
A19: 小计 | D19: =SUM(D17:D18) -> 1036 | E19: =SUM(E17:E18) -> 4,223,711.40 | F19: =SUM(F17:F18) -> 131,628.01 | G19: =SUM(G17:G18) -> 44,567
A20: 6 | B20: 三明永宁高速公路有限责任公司 | C20: 动态汽车衡（称台） | D20: =称台结果表!H50 -> 12 | E20: =称台结果表!K50 -> 1,495,986.69 | F20: =称台结果表!L50 -> 44,879.60 | G20: =称台结果表!N50 -> 50,400
C21: 机电设备 | D21: =机电设备结果表!H718 -> 350 | E21: =机电设备结果表!K718 -> 1,512,465.73 | F21: =机电设备结果表!L718 -> 64,747.67 | G21: =机电设备结果表!M718 -> 13,210
A22: 小计 | D22: =SUM(D20:D21) -> 362 | E22: =SUM(E20:E21) -> 3,008,452.42 | F22: =SUM(F20:F21) -> 109,627.27 | G22: =SUM(G20:G21) -> 63,610
A23: 合计 | D23: =D22+D19+D16+D13+D10+D7 -> 8401 | E23: =E22+E19+E16+E13+E10+E7 -> 47,334,516.88 | F23: =F22+F19+F16+F13+F10+F7 -> 1,798,466.63 | G23: =G22+G19+G16+G13+G10+G7 -> 974,272
A24: 扣除运杂费 | G24: =称台结果表!N52+机电设备结果表!M720 -> 44,284
A25: 评估净值 | G25: 930,000 | H25: 取整
E26: 福建居安资产评估房地产土地估价有限公司
E27: 2021-09-03

Sheet 称台结果表
A1: 动态汽车衡（称台）待报废资产评估结果明细表
A2: 评估基准日：2021年7月20日
A3: 委托评估单位：三明福银高速公路有限责任公司 | M3: 金额单位：人民币元
A4: 序号 | B4: 存放地点 | C4: 资产编码 | D4: 资产名称 | E4: 规格型号 | F4: 权属单位 | G4: 购置日期 | H4: 数量 | I4: 单位 | J4: 资产来源 | K4: 原值 | L4: 净值 | M4: 总重（吨） | N4: 评估值 | O4: 备注
A5: 一、三明北机维站
A6: 1 | B6: 夏茂 | D6: 称台 | E6: 万集 | F6: 三福高速公路 | G6: 2016 | H6: 1 | I6: 台 | J6: 更新淘汰 | K6: 89712.00 | L6: 36333.36 | M6: 1.2 | N6: 3600 | O6: 整称改造
A7: 2 | B7: 夏茂 | C7: 150101N10206010005 | D7: 普通车道计重设备 | E7: 恒科 | F7: 三福高速公路 | G7: 2007 | H7: 2 | I7: 台 | J7: 更新淘汰 | K7: 172017.32 | L7: 5160.52 | M7: 3 | N7: 9000 | O7: 整称改造
A8: 3 | B8: 夏茂 | C8: 150101B2020001 | D8: 超限车道计重设备 | E8: 恒科 | F8: 三福高速公路 | G8: 2007 | H8: 1 | I8: 套 | J8: 更新淘汰 | K8: 216693.00 | L8: 6500.79 | M8: 3.6 | N8: 10800 | O8: 1套2台
A9: 4 | B9: 夏茂 | C9: 150101N10206010005 | D9: 普通车道计重设备 | E9: 恒科 | F9: 三福高速公路 | G9: 2007 | H9: 2 | I9: 台 | J9: 更新淘汰 | K9: 172017.32 | L9: 5160.52 | M9: 3 | N9: 9000
A10: 5 | B10: 青州收费站 | C10: 150101N10206010005 | D10: 普通车道计重设备 | E10: 恒科 | F10: 三福高速公路 | G10: 2007 | H10: 2 | I10: 台 | J10: 故障淘汰 | K10: 172017.32 | L10: 5160.52 | M10: 3 | N10: 9000 | O10: 整称改造
A11: 6 | B11: 青州收费站 | C11: 150101B2020001 | D11: 超限车道计重设备 | E11: 恒科 | F11: 三福高速公路 | G11: 2009 | H11: 1 | I11: 套 | J11: 故障淘汰 | K11: 216693.00 | L11: 6500.79 | M11: 3.6 | N11: 10800 | O11: 1套2台
A12: 7 | B12: 垄东停车区 | C12: 150101N10206010005 | D12: 普通车道计重设备 | E12: 恒科 | F12: 三福高速公路 | G12: 2007 | H12: 6 | I12: 台 | J12: 故障淘汰 | K12: 516051.96 | L12: 15481.56 | M12: 6 | N12: 18000 | O12: 锈蚀严重
A13: 8 | B13: 莘口报废库 | C13: 150101N10206010005 | D13: 普通车道计重设备 | E13: 恒科 | F13: 三福高速公路 | G13: 2007 | H13: 1 | I13: 台 | J13: 2009年建设 | K13: 86008.66 | L13: 2580.26 | M13: 1.5 | N13: 4500 | O13: 整称改造
A14: 9 | B14: 莘口报废库 | C14: 150101B2020002 | D14: 普通车道计重设备 | E14: 恒科 | F14: 三福高速公路 | G14: 2008 | H14: 1 | I14: 台 | J14: 2009年建设 | K14: 117096.14 | L14: 3512.88 | M14: 1.8 | N14: 5400 | O14: 整称改造
A15: 二、洋中机维站
A16: 10 | B16: 大排 | C16: 150101N10206010005 | D16: 普通车道计重设备 | E16: 恒科 | F16: 三福高速公路 | G16: 2007 | H16: 3 | I16: 台 | J16: 淘汰 | K16: 258025.98 | L16: 7740.78 | M16: 4.5 | N16: 13500 | O16: 整称改造
A17: 11 | B17: 大排 | C17: 150101N10206010005 | D17: 普通车道计重设备 | E17: 恒科 | F17: 三福高速公路 | G17: 2007 | H17: 3 | I17: 台 | J17: 淘汰 | K17: 258025.98 | L17: 7740.78 | M17: 4.5 | N17: 13500
A18: 以上权属：三明福银高速公路有限责任公司（一期） | H18: 23 | K18: 2274358.68 | L18: 101872.76 | M18: 35.7 | N18: 107100
A19: 三、将乐机维站
A20: 1 | B20: 夏茂 | C20: 150201N10206010003 | D20: 普通车道计重设备 | E20: 万集 | F20: 三福高速公路 | G20: 2007 | H20: 1 | I20: 台 | J20: 更新淘汰 | K20: 110000.00 | L20: 3300.00 | M20: 1.5 | N20: 4500
A21: 2 | B21: 夏茂 | C21: 150201N10206010003 | D21: 普通车道计重设备 | E21: 万集 | F21: 三福高速公路 | G21: 2007 | H21: 1 | I21: 台 | J21: 更新淘汰 | K21: 110000.00 | L21: 3300.00 | M21: 1.5 | N21: 4500 | O21: 整称改造
A22: 3 | B22: 寨下收费站 | C22: 150201N10206010003 | D22: 普通车道计重设备 | E22: 万集 | F22: 福银高速公路 | G22: 2007年 | H22: 3 | I22: 台 | J22: 工程拆卸入库 | K22: 330000.00 | L22: 9900.00 | M22: 3.6 | N22: 10800 | O22: 整称改造
A23: 以上权属：三明福银高速公路有限责任公司（二期） | H23: 5 | K23: 550000.00 | L23: 16500.00 | M23: 6.6 | N23: 19800
A24: 1 | B24: 寨下收费站 | C24: 08106A10304001018234 | D24: 普通车道计重设备 | E24: 万集 | F24: 三明建泰高速公路有限责任公司 | G24: 2013 | H24: 1 | I24: 台 | J24: 工程拆卸入库 | K24: 256982.08 | L24: 7709.46 | M24: 1.5 | N24: 4500 | O24: 整称改造
A25: 2 | B25: 寨下收费站 | C25: 08106A10304001018234 | D25: 普通车道计重设备 | E25: 万集 | F25: 三明建泰高速公路有限责任公司 | G25: 2013 | H25: 1 | I25: 台 | J25: 工程拆卸入库 | K25: 274633.38 | L25: 8239.00 | M25: 1.5 | N25: 4500 | O25: 整称改造
A26: 四、建宁机维站
A27: 3 | B27: 寨下收费站 | C27: 08106A10109018452 | D27: 称台 | E27: 万集 | F27: 三明建泰高速公路有限责任公司 | G27: 2017 | H27: 1 | I27: 台 | J27: 工程拆卸入库 | K27: 113502.15 | L27: 60156.14 | M27: 1.2 | N27: 3600 | O27: 整称改造
A28: 4 | B28: 寨下收费站 | C28: 08106A10109018452 | D28: 称台 | E28: 万集 | F28: 三明建泰高速公路有限责任公司 | G28: 2017 | H28: 1 | I28: 台 | J28: 工程拆卸入库 | K28: 119502.15 | L28: 63336.14 | M28: 1.2 | N28: 3600 | O28: 整称改造
A29: 5 | B29: 寨下收费站 | C29: 08106A10304001018234 | D29: 普通车道计重设备 | E29: 万集 | F29: 三明建泰高速公路有限责任公司 | G29: 2013 | H29: 1 | I29: 台 | J29: 工程拆卸入库 | K29: 274633.38 | L29: 8239.00 | M29: 1.5 | N29: 4500 | O29: 整称改造
A30: 6 | B30: 寨下收费站 | C30: 08106A10304001018234 | D30: 普通车道计重设备 | E30: 万集 | F30: 三明建泰高速公路有限责任公司 | G30: 2013 | H30: 3 | I30: 台 | J30: 工程拆卸入库 | K30: 770946.24 | L30: 23128.39 | M30: 4.5 | N30: 13500 | O30: 整称改造
A31: 以上权属：三明建泰高速公路有限责任公司 | H31: 8 | K31: 1810199.38 | L31: 170808.13 | M31: 11.4 | N31: 34200
A32: 五、三明南机维站
A33: 1 | B33: 莘口报废库 | C33: 1601N10206020001 | D33: 普通车道计重设备 | E33: 万集 | F33: 泉三高速公司 | G33: 2008 | H33: 4 | I33: 台 | J33: 2008年建设 | K33: 407182.84 | L33: 12215.49 | M33: 4.8 | N33: 14400 | O33: 整称改造
A34: 2 | B34: 永安北养护报废站 | C34: 1601N10206020001 | D34: 普通车道计重设备 | E34: 万集 | F34: 泉三高速公司 | G34: 2008 | H34: 1 | I34: 台 | J34: 2008年建设 | K34: 101795.71 | L34: 3053.87 | M34: 1.2 | N34: 3600 | O34: 整称改造
A35: 3 | B35: 永安北养护报废站 | D35: 普通车道计重设备 | E35: 恒科 | F35: 泉三高速公司 | G35: 2017 | H35: 1 | I35: 台 | J35: 2008年建设 | K35: 96801.12 | L35: 2904.03 | M35: 1 | N35: 3000 | O35: 整称改造
A36: 4 | B36: 洪田报废库 | C36: 1601N10206020001 | D36: 普通车道计重设备 | E36: 万集 | F36: 泉三高速公司 | G36: 2018 | H36: 3 | I36: 台 | J36: 2008年建设 | K36: 305387.13 | L36: 9161.61 | M36: 3.6 | N36: 10800 | O36: 整称改造
A37: 5 | B37: 莘口报废库 | D37: 普通车道计重设备 | E37: 恒科 | F37: 泉三高速公司 | G37: 2017 | H37: 1 | I37: 台 | J37: 2008年建设 | K37: 96801.12 | L37: 51304.59 | M37: 1.5 | N37: 4500 | O37: 整称改造
A38: 六、大田机维站
A39: 1 | B39: 吴山收费站篮球场 | C39: 1601N10206020001 | D39: 普通车道计重设备 | E39: 恒科ZCS-30 | F39: 泉三高速公路 | G39: 2008 | H39: 4 | I39: 台 | J39: 2008年建设 | K39: 407182.84 | L39: 12215.49 | M39: 7.2 | N39: 21600 | O39: 整称改造
A40: 2 | B40: 吴山收费站篮球场 | D40: 普通车道计重设备 | E40: 万集 | F40: 泉三高速公路 | G40: 2016 | H40: 1 | I40: 台 | J40: 2016年建设 | K40: 101000.00 | L40: 40905.00 | M40: 0.7 | N40: 2100 | O40: 整称改造
A41: 以上权属：三明泉三高速公路有限责任公司 | H41: 15 | K41: 1516150.76 | L41: 131760.08 | M41: 20 | N41: 60000
A42: 七、永安机维站
A43: 1 | B43: 洪田营区 | C43: 1701N10206030001 | D43: 普通车道计重设备 | E43: TW-1000 | F43: 三明永武高速公路有限责任公司 | G43: 2010.4 | H43: 2 | I43: 台 | J43: 建设 | K43: 397568.02 | L43: 11927.04 | M43: 3.6 | N43: 10800 | O43: 整称改造
A44: 以上权属：三明永武高速公路有限责任公司 | H44: 2 | K44: 397568.02 | L44: 11927.04 | M44: 3.6 | N44: 10800
A45: 1 | B45: 明溪南营区 | C45: 08105N10206011144 | D45: 普通车道计重设备 | E45: TW-1000 | F45: 三明永宁高速公路有限责任公司 | G45: 2011.11 | H45: 2 | I45: 台 | J45: 建设 | K45: 246326.26 | L45: 7389.79 | M45: 3 | N45: 9000 | O45: 整称改造
A46: 2 | B46: 明溪南营区 | C46: 08105N10206011144 | D46: 超宽车道计重设备 | E46: TW-1000 | F46: 三明永宁高速公路有限责任公司 | G46: 2011.11 | H46: 2 | I46: 台 | J46: 建设 | K46: 251477.44 | L46: 7544.32 | M46: 3.6 | N46: 10800 | O46: 整称改造
A47: 八、清流机维站
A48: 3 | B48: 永安北收费站 | C48: 08105N10206011144 | D48: 超宽车道计重设备 | E48: 万集DCS-30K | F48: 三明永宁高速公路有限责任公司 | G48: 2012.1 | H48: 5 | I48: 台 | J48: 建设期购置 | K48: 628693.60 | L48: 18860.81 | M48: 6.6 | N48: 19800 | O48: 整称改造
A49: 4 | B49: 永安北收费站 | C49: 08105N10206011144 | D49: 普通车道计重设备 | E49: 万集DCS-30K | F49: 三明永宁高速公路有限责任公司 | G49: 2012.1 | H49: 3 | I49: 台 | J49: 建设期购置 | K49: 369489.39 | L49: 11084.68 | M49: 3.6 | N49: 10800 | O49: 整称改造
A50: 以上权属：三明永宁高速公路有限责任公司 | H50: 12 | K50: 1495986.69 | L50: 44879.60 | M50: 16.8 | N50: 50400
A51: 总计 | H51: 65 | K51: 8044263.53 | L51: 477747.62 | M51: 94.10 | N51: 282300 | O51: 整称改造51台
A52: 扣除运杂费 | N52: 23525
A53: 评估净值 | N53: 258800 | O53: 取整

Sheet 机电设备结果表
A1: 机电设备待报废资产评估结果明细表
A2: 评估基准日：2021年7月20日
A3: 委托评估单位：三明福银高速公路有限责任公司 | L3: 金额单位：人民币元
A4: 序号 | B4: 存放地点 | C4: 资产编码 | D4: 资产名称 | E4: 规格型号 | F4: 权属单位 | G4: 购置日期 | H4: 数量 | I4: 单位 | J4: 资产来源 | K4: 原值 | L4: 净值 | M4: 评估值 | N4: 备注
A5: 一、三明北机维站
A6: 灯具类
A7: 1 | B7: 青州 | D7: 车道顶棚灯外壳 | E7: 定制 | F7: 三福高速公路 | G7: 2004年 | H7: 58 | I7: 盏 | J7: 故障淘汰 | K7: 19198.00 | L7: 575.94 | M7: 870.00
A8: 2 | B8: 三明北所 | D8: 应急灯 | E8: 索恩 | F8: 三福高速公路 | G8: 2004年 | H8: 200 | I8: 盏 | J8: 更新淘汰 | K8: 352000.00 | L8: 10560.00 | M8: 31800.00
A9: 3 | B9: 青州所 | D9: LED应急灯 | E9: 56W | F9: 三福高速公路 | G9: 2009年 | H9: 230 | I9: 盏 | J9: 专项改造 | K9: 616400.00 | L9: 18492.00 | M9: 11730.00
A10: 4 | B10: 南阳所 | D10: 无极灯 | E10: TL7-100E | F10: 三福高速公路 | G10: 2006年 | H10: 100 | I10: 盏 | J10: 专项改造 | K10: 321600.00 | L10: 9648.00 | M10: 15900.00
A11: 5 | B11: 南阳所 | D11: 车道顶棚灯外壳 | E11: 定制 | F11: 三福高速公路 | G11: 2004年 | H11: 50 | I11: 盏 | J11: 故障淘汰 | K11: 16550.00 | L11: 496.50 | M11: 250.00
A12: 紧急电话类
A13: 6 | B13: 南阳11-1 | D13: 广播功放板 | E13: 兴电 | F13: 三福高速公路 | G13: 2004年 | H13: 26 | I13: 块 | J13: 故障淘汰 | K13: 10189.40 | L13: 305.68 | M13: 312.00
A14: 7 | B14: 南阳11-1 | D14: 紧急电话分机板 | E14: 兴电 | F14: 三福高速公路 | G14: 2004年 | H14: 29 | I14: 块 | J14: 故障淘汰 | K14: 81200.00 | L14: 2436.00 | M14: 377.00
A15: 其他电子设备类
A16: 8 | B16: 南阳6-1 | D16: 综合业务接入器 | E16: ZXB10-S100 | F16: 三福高速公路 | G16: 2004年 | H16: 1 | I16: 台 | J16: 故障淘汰 | K16: 19219.12 | L16: 576.57 | M16: 80.00
A17: 9 | B17: 南阳6-1 | D17: 2M 转换器 | E17: SAP-E120 | F17: 三福高速公路 | G17: 2004年 | H17: 1 | I17: 台 | J17: 故障淘汰 | K17: 1055.00 | L17: 31.65 | M17: 20.00
A18: 10 | B18: 南阳6-1 | D18: 2M 转换器 | E18: B2100 | F18: 三福高速公路 | G18: 2004年 | H18: 13 | I18: 台 | J18: 故障淘汰 | K18: 13715.00 | L18: 411.45 | M18: 260.00
A19: 11 | B19: 南阳6-1/7-1 | C19: 150101N102040003 | D19: 烽火传输设备 | E19: 烽火GF155-03A | F19: 三福高速公路 | G19: 2004年 | H19: 3 | I19: 台 | J19: 故障淘汰 | K19: 536036.91 | L19: 16081.11 | M19: 1800.00
A20: 12 | B20: 南阳6-1/7-1 | C20: 150101N102040003 | D20: 烽火传输设备 | E20: 烽火GF155-03B | F20: 三福高速公路 | G20: 2004年 | H20: 1 | I20: 台 | J20: 故障淘汰 | K20: 292665.03 | L20: 8779.95 | M20: 600.00
A21: 13 | B21: 南阳6-1 | C21: 150101N102040003 | D21: 路由器 | E21: ZXR110 GAR | F21: 三福高速公路 | G21: 2004年 | H21: 1 | I21: 台 | J21: 故障淘汰 | K21: 11246.76 | L21: 337.40 | M21: 100.00
A22: 14 | B22: 南阳6-1 | C22: 150101N10206010005 | D22: 交换机 | E22: 中兴ZXR110 2826 | F22: 三福高速公路 | G22: 2004年 | H22: 4 | I22: 台 | J22: 故障淘汰 | K22: 23308.68 | L22: 699.26 | M22: 200.00
A23: 15 | B23: 南阳6-1 | C23: 150101N10206010005 | D23: 交换机 | E23: 中兴ZXR110 3904 | F23: 三福高速公路 | G23: 2004年 | H23: 5 | I23: 台 | J23: 故障淘汰 | K23: 58271.65 | L23: 1748.15 | M23: 400.00
A24: 16 | B24: 南阳6-1 | D24: 交换机 | E24: D-LINK-1008D | F24: 三福高速公路 | G24: 2004年 | H24: 2 | I24: 台 | J24: 故障淘汰 | K24: 838.00 | L24: 25.14 | M24: 60.00
A25: 17 | B25: 南阳6-1 | D25: 交换机 | E25: 3COM-3C16794 | F25: 三福高速公路 | G25: 2004年 | H25: 1 | I25: 台 | J25: 故障淘汰 | K25: 1315.00 | L25: 39.45 | M25: 30.00
A26: 18 | B26: 南阳仓库 | D26: 火灾报警综合盘 | E26: RCDZ001 | F26: 三福高速公路 | G26: 2004年 | H26: 86 | I26: 台 | J26: 故障淘汰 | K26: 17200.00 | L26: 516.00 | M26: 3010.00
A27: 19 | B27: 南阳11-2 | D27: 车检器 | E27: V8100型 | F27: 三福高速公路 | G27: 2004年 | H27: 3 | I27: 台 | J27: 故障淘汰 | K27: 12000.00 | L27: 360.00 | M27: 12.00
A28: 20 | B28: 南阳11-2 | D28: 串口服务器 | E28: UT-6601H | F28: 三福高速公路 | G28: 2004年 | H28: 4 | I28: 台 | J28: 故障淘汰 | K28: 6640.00 | L28: 199.20 | M28: 16.00
A29: 21 | B29: 南阳11-2 | D29: 多级网络连接器 | E29: HD-DL50/DL40 | F29: 三福高速公路 | G29: 2004年 | H29: 5 | I29: 台 | J29: 故障淘汰 | K29: 7500.00 | L29: 225.00 | M29: 25.00
A30: 22 | B30: 南阳11-2 | D30: 中型音视频切换矩阵 | E30: HD-MX640 | F30: 三福高速公路 | G30: 2004年 | H30: 4 | I30: 台 | J30: 故障淘汰 | K30: 72068.00 | L30: 2162.04 | M30: 84.00
A31: 23 | B31: 南阳11-2 | D31: 视频转换器 | E31: AFV2005A-D | F31: 三福高速公路 | G31: 2004年 | H31: 1 | I31: 台 | J31: 故障淘汰 | K31: 3200.00 | L31: 96.00 | M31: 20.00
A32: 24 | B32: 南阳11-2 | C32: 150101N102040003 | D32: 解码器 | E32: VSTAR 120DL | F32: 三福高速公路 | G32: 2004年 | H32: 3 | I32: 台 | J32: 故障淘汰 | K32: 101220.87 | L32: 3036.63 | M32: 15.00
A33: 25 | B33: 南阳11-2 | D33: 云台控制键盘 | E33: HD-SC600 | F33: 三福高速公路 | G33: 2004年 | H33: 8 | I33: 台 | J33: 故障淘汰 | K33: 20800.00 | L33: 624.00 | M33: 80.00
A34: 26 | B34: 南阳11-2 | D34: 云台控制器 | E34: HUDN HD-NC540 | F34: 三福高速公路 | G34: 2004年 | H34: 1 | I34: 台 | J34: 故障淘汰 | K34: 4357.00 | L34: 130.71 | M34: 50.00
A35: 27 | B35: 南阳11-2 | D35: 云台控制编码器 | E35: HD-CM2000 | F35: 三福高速公路 | G35: 2004年 | H35: 2 | I35: 台 | J35: 故障淘汰 | K35: 5200.00 | L35: 156.00 | M35: 14.00
A36: 28 | B36: 南阳11-2 | D36: 视频分频器 | E36: HD-MD316-316Z/416 | F36: 三福高速公路 | G36: 2004年 | H36: 17 | I36: 台 | J36: 故障淘汰 | K36: 34000.00 | L36: 1020.00 | M36: 340.00
A37: 29 | B37: 南阳12-2 | D37: 视频分配器 | E37: VIDEO-PIH-6163 | F37: 三福高速公路 | G37: 2004年 | H37: 4 | I37: 台 | J37: 故障淘汰 | K37: 8000.00 | L37: 240.00 | M37: 32.00
A38: 30 | B38: 南阳12-2 | D38: 视频分频器 | E38: VDA 116 | F38: 三福高速公路 | G38: 2004年 | H38: 1 | I38: 台 | J38: 故障淘汰 | K38: 2000.00 | L38: 60.00 | M38: 20.00
A39: 31 | B39: 南阳12-2 | D39: 光端机 | E39: VOX-XG2000S | F39: 三福高速公路 | G39: 2004年 | H39: 2 | I39: 台 | J39: 故障淘汰 | K39: 6000.00 | L39: 180.00 | M39: 196.00
A40: 32 | B40: 南阳12-1 | D40: 光端机 | E40: VORX OB18 | F40: 三福高速公路 | G40: 2004年 | H40: 5 | I40: 台 | J40: 故障淘汰 | K40: 15000.00 | L40: 450.00 | M40: 490.00
A41: 33 | B41: 南阳12-2 | C41: 150101N10206010005 | D41: 光端机 | E41: 站级汇聚OB9152/9211 | F41: 三福高速公路 | G41: 2004年 | H41: 4 | I41: 台 | J41: 故障淘汰 | K41: 54437.40 | L41: 1633.12 | M41: 260.00
A42: 34 | B42: 南阳12-2 | C42: 150101N102040003 | D42: 光收发器 | E42: OB9961DR RS485 60km | F42: 三福高速公路 | G42: 2004年 | H42: 3 | I42: 台 | J42: 故障淘汰 | K42: 4055.88 | L42: 121.68 | M42: 60.00
A43: 35 | B43: 南阳12-2 | D43: 光端机 | E43: OB9974 | F43: 三福高速公路 | G43: 2004年 | H43: 3 | I43: 台 | J43: 故障淘汰 | K43: 6000.00 | L43: 180.00 | M43: 60.00
A44: 36 | B44: 南阳12-2 | D44: 光端机 | E44: DDT-D-R0401DSF | F44: 三福高速公路 | G44: 2004年 | H44: 5 | I44: 台 | J44: 故障淘汰 | K44: 45000.00 | L44: 1350.00 | M44: 230.00
A45: 37 | B45: 南阳12-2 | D45: 光端机 | E45: DDT-E-020-2D | F45: 三福高速公路 | G45: 2004年 | H45: 1 | I45: 台 | J45: 故障淘汰 | K45: 9000.00 | L45: 270.00 | M45: 46.00
A46: 38 | B46: 南阳12-2 | C46: 150101N102040003 | D46: 光发射机 | E46: OB9163DTR3 T79 | F46: 三福高速公路 | G46: 2004年 | H46: 1 | I46: 台 | J46: 故障淘汰 | K46: 18026.96 | L46: 540.81 | M46: 46.00
A47: 39 | B47: 南阳12-2 | C47: 150101N102040003 | D47: 光发射机 | E47: OB9163DTR3 T80 | F47: 三福高速公路 | G47: 2004年 | H47: 1 | I47: 台 | J47: 故障淘汰 | K47: 18026.96 | L47: 540.81 | M47: 46.00
A48: 40 | B48: 南阳12-2 | C48: 150101N102040003 | D48: 光发射机 | E48: OB9152DT | F48: 三福高速公路 | G48: 2004年 | H48: 2 | I48: 台 | J48: 故障淘汰 | K48: 26992.24 | L48: 809.77 | M48: 92.00
A49: 41 | B49: 南阳12-2 | D49: 光端机 | E49: VNX-18JDT-4V-FE | F49: 三福高速公路 | G49: 2004年 | H49: 5 | I49: 台 | J49: 故障淘汰 | K49: 15000.00 | L49: 450.00 | M49: 230.00
A50: 42 | B50: 南阳12-2 | D50: 光端机 | E50: VNX-8V-1D | F50: 三福高速公路 | G50: 2004年 | H50: 1 | I50: 台 | J50: 故障淘汰 | K50: 3000.00 | L50: 90.00 | M50: 46.00
A51: 43 | B51: 南阳12-2 | C51: 150101N102040003 | D51: 光发射机 | E51: OB9252DT(D1) | F51: 三福高速公路 | G51: 2004年 | H51: 2 | I51: 台 | J51: 故障淘汰 | K51: 13496.12 | L51: 404.88 | M51: 92.00
A52: 44 | B52: 南阳12-2 | C52: 150101N102040003 | D52: 光发射机 | E52: OB9211DT(D1) | F52: 三福高速公路 | G52: 2004年 | H52: 7 | I52: 台 | J52: 故障淘汰 | K52: 10197.54 | L52: 305.93 | M52: 140.00
A53: 45 | B53: 南阳12-2 | C53: 150101N102040003 | D53: 光发射机 | E53: OB9152DT4 | F53: 三福高速公路 | G53: 2004年 | H53: 2 | I53: 台 | J53: 故障淘汰 | K53: 22493.53 | L53: 674.81 | M53: 196.00
A54: 46 | B54: 南阳12-2 | C54: 150101N102040003 | D54: 光发射机 | E54: OB9152DTR4 | F54: 三福高速公路 | G54: 2004年 | H54: 2 | I54: 台 | J54: 故障淘汰 | K54: 22493.53 | L54: 674.81 | M54: 196.00
A55: 47 | B55: 南阳12-2 | C55: 150101N102040003 | D55: 光发射机 | E55: 9961DT | F55: 三福高速公路 | G55: 2004年 | H55: 8 | I55: 台 | J55: 故障淘汰 | K55: 10815.68 | L55: 324.47 | M55: 160.00
A56: 48 | B56: 南阳12-2 | C56: 150101N102040003 | D56: 光发射机 | E56: 9252DTR1 | F56: 三福高速公路 | G56: 2004年 | H56: 4 | I56: 台 | J56: 故障淘汰 | K56: 17994.83 | L56: 539.84 | M56: 184.00
A57: 49 | B57: 南阳12-2 | C57: 150101N102040003 | D57: 光发射机 | E57: 9252DT1 | F57: 三福高速公路 | G57: 2004年 | H57: 1 | I57: 台 | J57: 故障淘汰 | K57: 4498.71 | L57: 134.96 | M57: 46.00
A58: 50 | B58: 南阳12-2 | D58: 光端机 | E58: VETH-FF-1P | F58: 三福高速公路 | G58: 2004年 | H58: 1 | I58: 台 | J58: 故障淘汰 | K58: 3000.00 | L58: 90.00 | M58: 46.00
A59: 51 | B59: 南阳12-2 | D59: 光端机 | E59: VNX-2V-1D | F59: 三福高速公路 | G59: 2004年 | H59: 1 | I59: 台 | J59: 故障淘汰 | K59: 3000.00 | L59: 90.00 | M59: 46.00
A60: 52 | B60: 南阳12-2 | C60: 150101N102040006 | D60: 光端机 | E60: OMATE1120-2E-1B | F60: 三福高速公路 | G60: 2004年 | H60: 1 | I60: 台 | J60: 故障淘汰 | K60: 1351.96 | L60: 40.56 | M60: 46.00
A61: 53 | B61: 南阳12-2 | D61: 光端机 | E61: OMATE-10/T | F61: 三福高速公路 | G61: 2004年 | H61: 2 | I61: 台 | J61: 故障淘汰 | K61: 6000.00 | L61: 180.00 | M61: 92.00
A62: 54 | B62: 南阳12-2 | C62: 150101N102040003 | D62: 光发射机 | E62: OB9152DR | F62: 三福高速公路 | G62: 2004年 | H62: 5 | I62: 台 | J62: 故障淘汰 | K62: 62258.87 | L62: 1867.77 | M62: 230.00
A63: 55 | B63: 南阳12-2 | C63: 150101N102040003 | D63: 光发射机 | E63: OB9152DT | F63: 三福高速公路 | G63: 2004年 | H63: 5 | I63: 台 | J63: 故障淘汰 | K63: 74308.98 | L63: 2229.27 | M63: 230.00
A64: 56 | B64: 南阳12-2 | C64: 150101N102040003 | D64: 光发射机 | E64: OB9252DTR1 | F64: 三福高速公路 | G64: 2004年 | H64: 2 | I64: 台 | J64: 故障淘汰 | K64: 8997.41 | L64: 269.92 | M64: 92.00
A65: 57 | B65: 南阳12-2 | C65: 150101N102040003 | D65: 光发射机 | E65: OB9263DTR3 | F65: 三福高速公路 | G65: 2004年 | H65: 1 | I65: 台 | J65: 故障淘汰 | K65: 15745.47 | L65: 472.36 | M65: 46.00
A66: 58 | B66: 南阳12-2 | C66: 150101N102040003 | D66: 光发射机 | E66: OB9252DR | F66: 三福高速公路 | G66: 2004年 | H66: 1 | I66: 台 | J66: 故障淘汰 | K66: 4498.71 | L66: 134.96 | M66: 46.00
A67: 59 | B67: 南阳12-2 | D67: 摄像机 | E67: DH-CA-F781EP-A | F67: 三福高速公路 | G67: 2004年 | H67: 3 | I67: 台 | J67: 故障淘汰 | K67: 9000.00 | L67: 270.00 | M67: 15.00
A68: 60 | B68: 南阳12-2 | D68: 光纤收发器 | E68: 中威、创立信、诺龙、烽火、金浪 | F68: 三福高速公路 | G68: 2009年 | H68: 44 | I68: 台 | J68: 故障淘汰 | K68: 66000.00 | L68: 1980.00 | M68: 220.00
A69: 61 | B69: 南阳仓库 | C69: 150101N102040006 | D69: 可变信息发布屏 | E69: 三思 | F69: 三福高速公路 | G69: 2008年 | H69: 1 | I69: 台 | J69: 故障淘汰 | K69: 82469.61 | L69: 2474.09 | M69: 1531.00
A70: 62 | B70: 南阳仓库 | C70: 150101N102040006 | D70: 可变信息发布屏 | E70: 三思 | F70: 三福高速公路 | G70: 2004年 | H70: 1 | I70: 台 | J70: 故障淘汰 | K70: 109644.02 | L70: 3289.32 | M70: 963.00
A71: 63 | B71: 南阳仓库 | C71: 150101N102040006 | D71: 可变信息发布屏 | E71: 三思 | F71: 邵三高速公路 | G71: 2006年 | H71: 1 | I71: 台 | J71: 故障淘汰 | K71: 124751.67 | L71: 3742.55 | M71: 963.00
A72: 64 | B72: 莘口收费站 | C72: 150101N102040006 | D72: 可变信息发布屏 | E72: 三思 | F72: 三福高速公路 | G72: 2004年 | H72: 4 | I72: 台 | J72: 故障淘汰 | K72: 448850.96 | L72: 13465.53 | M72: 5880.00
A73: 65 | B73: 南阳12-3 | D73: 散热器 | E73: 酷冷-C116 | F73: 三福高速公路 | G73: 2008年 | H73: 6 | I73: 台 | J73: 故障淘汰 | K73: 1200.00 | L73: 36.00 | M73: 6.00
A74: 66 | B74: 南阳10-1/10-2 | C74: 150101B2030004 | D74: 雨棚信号灯 | E74: 优创Y8650X | F74: 三福高速公路 | G74: 2009年 | H74: 16 | I74: 台 | J74: 故障淘汰 | K74: 194814.24 | L74: 5844.43 | M74: 752.00
A75: 67 | B75: 南阳仓库11-4 | C75: 150101B2030004 | D75: ETC车道天线 | E75: 金溢SHINE-G60 | F75: 三福、邵三高速公路 | G75: 2007年 | H75: 11 | I75: 台 | J75: 更新淘汰 | K75: 1217739.82 | L75: 36532.19 | M75: 4004.00
A76: 68 | B76: 南阳11-4 | C76: 150101B2030004 | D76: ETC天线控制器 | E76: 金溢SHINE-G60 | F76: 三福、邵三高速公路 | G76: 2007年 | H76: 10 | I76: 台 | J76: 更新淘汰 | K76: 116274.00 | L76: 3488.22 | M76: 980.00
A77: 69 | B77: 南阳10-4 | D77: 工控机主板 | E77: PCA-6181 | F77: 三福高速公路 | G77: 2006年 | H77: 11 | I77: 台 | J77: 故障淘汰 | K77: 35200.00 | L77: 1056.00 | M77: 132.00
A78: 70 | B78: 南阳10-4 | D78: 工控机主板 | E78: PCA-6010 | F78: 三福高速公路 | G78: 2009年 | H78: 8 | I78: 台 | J78: 故障淘汰 | K78: 25600.00 | L78: 768.00 | M78: 96.00
A79: 71 | B79: 南阳10-4 | D79: 工控机主板 | E79: PCA-6006 | F79: 三福高速公路 | G79: 2004年 | H79: 9 | I79: 台 | J79: 故障淘汰 | K79: 28800.00 | L79: 864.00 | M79: 108.00
A80: 72 | B80: 南阳仓库 | D80: 工控机 | E80: NL-7016 | F80: 三福高速公路 | G80: 2004年 | H80: 18 | I80: 台 | J80: 更新淘汰 | K80: 131400.00 | L80: 3942.00 | M80: 1890.00 | N80: 不含硬盘
A81: 73 | B81: 南阳5-1 | C81: 150101B2030004 | D81: ETC服务器 | E81: HP定制 | F81: 三福高速公路 | G81: 2007年 | H81: 1 | I81: 台 | J81: 更新淘汰 | K81: 52744.56 | L81: 1582.34 | M81: 100.00 | N81: 不含硬盘
A82: 74 | B82: 南阳5-1 | D82: 服务器 | E82: IBM X3650 M3 7945I05 | F82: 三福高速公路 | G82: 2011年 | H82: 1 | I82: 台 | J82: 故障淘汰 | K82: 24765.46 | L82: 742.96 | M82: 80.00 | N82: 不含硬盘
A83: 75 | B83: 南阳5-1 | C83: 150101N10206010005 | D83: 收费站服务器 | E83: HP | F83: 三福高速公路 | G83: 2004年 | H83: 2 | I83: 台 | J83: 故障淘汰 | K83: 49530.92 | L83: 1485.93 | M83: 300.00 | N83: 不含硬盘
A84: 76 | B84: 南阳5-2 | C84: 150101N102040004 | D84: 服务器 | E84: HP ES1027 | F84: 三福高速公路 | G84: 2004年 | H84: 2 | I84: 台 | J84: 故障淘汰 | K84: 87407.50 | L84: 2622.23 | M84: 300.00 | N84: 不含硬盘
A85: 77 | B85: 南阳5-2 | D85: 电脑主机 | E85: HPXW4100 | F85: 三福高速公路 | H85: 2 | I85: 台 | J85: 故障淘汰 | K85: 14000.00 | L85: 420.00 | M85: 200.00 | N85: 不含硬盘
A86: 78 | B86: 南阳9-4 | C86: 150101N102040002 | D86: 在线式工频UPS | E86: ON-LINE-1KVA | F86: 三福高速公路 | G86: 2004年 | H86: 7 | I86: 台 | J86: 故障淘汰 | K86: 8170.82 | L86: 245.12 | M86: 910.00
A87: 79 | B87: 南阳仓库 | C87: 150101N102040006 | D87: UPS | E87: 科士达HI3303 10KVA | F87: 三福高速公路 | G87: 2004年 | H87: 6 | I87: 台 | J87: 故障淘汰 | K87: 121676.46 | L87: 3650.29 | M87: 3900.00
A88: 80 | B88: 南阳11-3 | C88: 150101B2030004 | D88: ETC车道控制器 | E88: 未知 | F88: 三福高速公路 | G88: 2007年 | H88: 2 | I88: 台 | J88: 故障淘汰 | K88: 23254.80 | L88: 697.64 | M88: 390.00
A89: 81 | B89: 南阳12-4 | C89: 150101N10206010005 | D89: 液晶显示器 | E89: 未知 | F89: 三福高速公路 | G89: 2004年 | H89: 18 | I89: 台 | J89: 故障淘汰 | K89: 31466.70 | L89: 944.00 | M89: 360.00
A90: 82 | B90: 南阳12-3 | D90: 大显示器 | E90: 未知 | F90: 三福高速公路 | G90: 2004年 | H90: 3 | I90: 台 | J90: 故障淘汰 | K90: 3744.00 | L90: 112.32 | M90: 60.00
A91: 83 | B91: 南阳仓库 | D91: ETC费显 | E91: 华工 | F91: 三福高速公路 | G91: 2007年 | H91: 7 | I91: 台 | J91: 更新淘汰 | K91: 39200.00 | L91: 1176.00 | M91: 371.00
A92: 84 | B92: 南阳仓库 | D92: 费额显示器 | E92: 新大陆 | F92: 三福高速公路 | G92: 2004年 | H92: 2 | I92: 台 | J92: 故障淘汰 | K92: 8000.00 | L92: 240.00 | M92: 106.00
A93: 85 | B93: 青州仓库 | D93: 费额显示器 | E93: 新大陆 | F93: 三福高速公路 | G93: 2004年 | H93: 28 | I93: 台 | J93: 故障淘汰 | K93: 112000.00 | L93: 3360.00 | M93: 896.00
A94: 86 | B94: 南阳12-3 | D94: 费显喇叭 | E94: 定制 | F94: 三福高速公路 | G94: 2004年 | H94: 2 | I94: 台 | J94: 故障淘汰 | K94: 100.00 | L94: 3.00 | M94: 2.00
A95: 87 | B95: 南阳11-3、10-3 | C95: 150101N10206010005 | D95: 车道收费系统车牌自动识别设备 | E95: 高德威（2个1组共20组） | F95: 三福高速公路 | G95: 2006年 | H95: 20 | I95: 台 | J95: 更新淘汰 | K95: 681432.80 | L95: 20442.98 | M95: 840.00
A96: 88 | B96: 南阳11-3 | D96: 抓拍 | E96: 信路威 | F96: 三福高速公路 | G96: 2013年 | H96: 2 | I96: 台 | J96: 更新淘汰 | K96: 12000.00 | L96: 360.00 | M96: 42.00
A97: 89 | B97: 南阳12-3 | D97: 抓拍板 | E97: GDW-IPB2005/IPB2006 | F97: 三福高速公路 | G97: 2004年 | H97: 18 | I97: 台 | J97: 故障淘汰 | K97: 28800.00 | L97: 864.00 | M97: 18.00
A98: 90 | B98: 南阳12-3 | D98: 闪光灯电源板 | E98: GDW | F98: 三福高速公路 | G98: 2004年 | H98: 7 | I98: 台 | J98: 故障淘汰 | K98: 5600.00 | L98: 168.00 | M98: 7.00
A99: 91 | B99: 南阳12-2 | D99: 镜头 | E99: SL10200M | F99: 三福高速公路 | G99: 2009年 | H99: 1 | I99: 台 | J99: 故障淘汰 | K99: 900.00 | L99: 27.00 | M99: 1.00
A100: 92 | B100: 南阳12-2 | D100: 摄像机 | E100: 开拓者 CTC970 | F100: 三福高速公路 | G100: 2008年 | H100: 30 | I100: 台 | J100: 故障淘汰 | K100: 15600.00 | L100: 468.00 | M100: 150.00
A101: 93 | B101: 南阳12-3 | D101: 枪式摄像机 | E101: VCC-6598PC | F101: 三福高速公路 | G101: 2012年 | H101: 2 | I101: 台 | J101: 故障淘汰 | K101: 6000.00 | L101: 180.00 | M101: 10.00
A102: 94 | B102: 南阳12-3 | D102: 枪式摄像机 | E102: VCC-6592PC | F102: 三福高速公路 | G102: 2012年 | H102: 5 | I102: 台 | J102: 故障淘汰 | K102: 15000.00 | L102: 450.00 | M102: 25.00
A103: 95 | B103: 南阳10-4 | D103: 亭内摄像机 | E103: 三星、CREATOR | F103: 三福高速公路 | G103: 2004年 | H103: 22 | I103: 台 | J103: 故障淘汰 | K103: 21560.00 | L103: 646.80 | M103: 528.00
A104: 96 | B104: 南阳10-4 | D104: 云台 | E104: 未知 | F104: 三福高速公路 | G104: 2004年 | H104: 2 | I104: 台 | J104: 故障淘汰 | K104: 11200.00 | L104: 336.00 | M104: 48.00
A105: 97 | B105: 南阳10-4 | D105: 打印机 | E105: HP1020plus | F105: 三福高速公路 | G105: 2004年 | H105: 1 | I105: 台 | J105: 故障淘汰 | K105: 1200.00 | L105: 36.00 | M105: 50.00
A106: 98 | B106: 南阳12-3 | D106: 字符叠加器 | E106: VDM802、800 | F106: 三福高速公路 | G106: 2004年 | H106: 28 | I106: 台 | J106: 故障淘汰 | K106: 47040.00 | L106: 1411.20 | M106: 280.00
A107: 99 | B107: 南阳12-3 | D107: 读卡器 | E107: JKM115A | F107: 三福高速公路 | G107: 2004年 | H107: 21 | I107: 台 | J107: 故障淘汰 | K107: 69888.00 | L107: 2096.64 | M107: 105.00
A108: 100 | B108: 南阳12-1 | D108: 收费键盘 | E108: NL-7200 | F108: 三福高速公路 | G108: 2004年 | H108: 27 | I108: 台 | J108: 故障淘汰 | K108: 26460.00 | L108: 793.80 | M108: 270.00
A109: 101 | B109: 南阳10-4 | D109: 票据打印机 | E109: stxd322/sp320 | F109: 三福高速公路 | G109: 2004年 | H109: 8 | I109: 台 | J109: 故障淘汰 | K109: 22400.00 | L109: 672.00 | M109: 40.00
A110: 102 | B110: 南阳仓库 | C110: 150101N10206010005 | D110: 自动栏杆机 | E110: U创（含电机、VLD、VBC） | F110: 三福高速公路 | G110: 2004年 | H110: 17 | I110: 台 | J110: 故障淘汰 | K110: 131257.00 | L110: 3937.71 | M110: 2006.00
A111: 103 | B111: 南阳5-1 | D111: VBC | E111: u创 | F111: 三福高速公路 | G111: 2009年 | H111: 47 | I111: 个 | J111: 故障淘汰 | K111: 47000.00 | L111: 1410.00 | M111: 235.00
A112: 104 | B112: 南阳5-1 | D112: VLD | E112: u创 | F112: 三福高速公路 | G112: 2009年 | H112: 35 | I112: 个 | J112: 故障淘汰 | K112: 28000.00 | L112: 840.00 | M112: 175.00
A113: 105 | B113: 南阳5-1 | D113: VLD | E113: 马格 | F113: 三福高速公路 | G113: 2009年 | H113: 4 | I113: 个 | J113: 故障淘汰 | K113: 8400.00 | L113: 252.00 | M113: 20.00
A114: 106 | B114: 南阳12-1 | D114: 电机 | E114: Q150 | F114: 三福高速公路 | G114: 2012年 | H114: 5 | I114: 台 | J114: 故障淘汰 | K114: 12500.00 | L114: 375.00 | M114: 150.00
A115: 107 | B115: 南阳12-1 | D115: 继电器板 | E115: 新大陆 | F115: 三福高速公路 | G115: 2004年 | H115: 6 | I115: 块 | J115: 故障淘汰 | K115: 15600.00 | L115: 468.00 | M115: 72.00
A116: 108 | B116: 南阳11-1 | D116: 串口卡 | E116: MOX C104/C168 | F116: 三福高速公路 | G116: 2004年 | H116: 8 | I116: 块 | J116: 故障淘汰 | K116: 6800.00 | L116: 204.00 | M116: 16.00
A117: 109 | B117: 南阳仓库（地上） | D117: 雾灯 | E117: 优创定制 | F117: 三福高速公路 | G117: 2005年 | H117: 8 | I117: 盏 | J117: 故障淘汰 | K117: 4000.00 | L117: 120.00 | M117: 80.00
A118: 其他废旧钢铁类
A119: 110 | B119: 南阳仓库 | C119: 150101B2030003 | D119: 卡机机芯 | E119: 广东电子所GERI-KJ-04WA | F119: 三福高速公路 | G119: 2012年 | H119: 8 | I119: 台 | J119: 更新淘汰 | K119: 80000.00 | L119: 2400.00 | M119: 704.00
A120: 111 | B120: 南阳仓库 | C120: 150101B2030003 | D120: 卡机外壳 | E120: 广东电子所 | F120: 三福高速公路 | G120: 2008年 | H120: 2 | I120: 台 | J120: 更新淘汰 | K120: 10000.00 | L120: 300.00 | M120: 700.00
A121: 112 | B121: 南阳仓库 | C121: 150101B2030003 | D121: 卡机（含机芯） | E121: 广东电子所 | F121: 三福高速公路 | G121: 2008年 | H121: 1 | I121: 台 | J121: 更新淘汰 | K121: 68000.00 | L121: 2040.00 | M121: 700.00
A122: 113 | B122: 青州 | C122: 150101B2030003 | D122: 卡机（含机芯） | E122: 广东电子所 | F122: 三福高速公路 | G122: 2008年 | H122: 1 | I122: 台 | J122: 更新淘汰 | K122: 157662.62 | L122: 4729.88 | M122: 700.00
A123: 114 | B123: 南阳仓库 | C123: 150101B2030003 | D123: 卡机（含机芯） | E123: 广东电子所 | F123: 三福高速公路 | G123: 2008年 | H123: 2 | I123: 台 | J123: 更新淘汰 | K123: 315325.24 | L123: 9459.76 | M123: 1400.00
A124: 115 | B124: 南阳仓库 | C124: 150101B2030003 | D124: 卡机（含机芯） | E124: 广东电子所 | F124: 三福高速公路 | G124: 2008年 | H124: 1 | I124: 台 | J124: 更新淘汰 | K124: 68000.00 | L124: 2040.00 | M124: 700.00
A125: 116 | B125: 三明北 | C125: 150101B2030003 | D125: 卡机外壳 | E125: 广东电子所 | F125: 三福高速公路 | G125: 2008年 | H125: 2 | I125: 台 | J125: 更新淘汰 | K125: 10000.00 | L125: 300.00 | M125: 700.00
A126: 117 | B126: 南阳仓库 | D126: 抓拍立柱 | E126: GDW | F126: 三福高速公路 | G126: 2006年 | H126: 22 | I126: 根 | J126: 更新淘汰 | K126: 13200.00 | L126: 396.00 | M126: 1166.00
A127: 118 | B127: 南阳仓库 | D127: 称重机柜外壳 | E127: 万集 | F127: 三福高速公路 | G127: 2008年 | H127: 8 | I127: 个 | J127: 更新淘汰 | K127: 8000.00 | L127: 240.00 | M127: 480.00
A128: 二、洋中机维站
A129: 变压器类
A130: 1 | B130: 三明北所 | C130: 150101N102040002 | D130: 变压器 | E130: S11-M-RD-315 | F130: 三福高速公路 | G130: 2004年 | H130: 1 | I130: 台 | J130: 故障淘汰 | K130: 181013.40 | L130: 5430.40 | M130: 12240.00
A131: 2 | B131: 三明北所 | C131: 150101N102040002 | D131: 变压器 | E131: S11-M-RD-160 | F131: 三福高速公路 | G131: 2004年 | H131: 1 | I131: 台 | J131: 更新淘汰 | K131: 161640.72 | L131: 4849.22 | M131: 8208.00
A132: 3 | B132: 三明北所 | C132: 150101N102040002 | D132: 变压器 | E132: S11-M-RD-80 | F132: 三福高速公路 | G132: 2009年 | H132: 1 | I132: 台 | J132: 专项改造 | K132: 99555.86 | L132: 2986.68 | M132: 5256.00
A133: 风机类
A134: 4 | B134: 大排废品库 | C134: 150101N102040002 | D134: 风机 | E134: 天津市鼓风机厂 SDS 11.2A | F134: 三福高速公路 | G134: 2004 | H134: 1 | I134: 台 | J134: 故障淘汰 | K134: 7412.01 | L134: 222.36 | M134: 1750.00
A135: 变压器
A136: 5 | B136: 洋中废品库 | D136: 双电源切换断路器 | E136: ABB-S5H 400A ICE60947-2 | F136: 三福高速公路 | G136: 2004 | H136: 1 | I136: 台 | J136: 故障淘汰 | K136: 10882.69 | L136: 326.48 | M136: 130.00
A137: 6 | B137: 官洋中压站 | C137: 150101N102040002 | D137: UPS主机 | E137: 科士达M20KVA | F137: 三福高速公路 | G137: 2004 | H137: 2 | I137: 台 | J137: 故障淘汰 | K137: 274223.48 | L137: 8226.70 | M137: 2600.00
A138: 7 | B138: 大排废品库 | D138: 微机进线自投装置 | E138: 德威特DVP-631 | F138: 三福高速公路 | G138: 2004 | H138: 4 | I138: 台 | J138: 故障淘汰 | K138: 9200.00 | L138: 276.00 | M138: 48.00
A139: 8 | B139: 大排废品库 | D139: 微机进线自投装置 | E139: 德威特DVP-623 | F139: 三福高速公路 | G139: 2004 | H139: 3 | I139: 台 | J139: 故障淘汰 | K139: 6900.00 | L139: 207.00 | M139: 36.00
A140: 9 | B140: 大排废品库 | D140: 微机进线自投装置 | E140: 德威特DVP-671 | F140: 三福高速公路 | G140: 2004 | H140: 2 | I140: 台 | J140: 故障淘汰 | K140: 4600.00 | L140: 138.00 | M140: 24.00
A141: 10 | B141: 大排废品库 | D141: 微机进线自投装置 | E141: 德威特DVP-653 | F141: 三福高速公路 | G141: 2004 | H141: 5 | I141: 台 | J141: 故障淘汰 | K141: 11500.00 | L141: 345.00 | M141: 60.00
A142: 11 | B142: 大排废品库 | D142: 应急灯 | E142: 厦门卡利CL-ZFZD-E3W 801F | F142: 三福高速公路 | G142: 2004 | H142: 57 | I142: 盏 | J142: 更新淘汰 | K142: 9690.00 | L142: 290.70 | M142: 2907.00
A143: 12 | B143: 大排 | D143: 隧道应急灯 | E143: 索恩 | F143: 三福高速公路 | G143: 2004 | H143: 698 | I143: 盏 | J143: 淘汰 | K143: 1228480.00 | L143: 36854.40 | M143: 110982.00
A144: 电子设备类
A145: 13 | B145: 洋中 | C145: 150101N102040003 | D145: 光线路终端（OLT) | E145: 烽火 | F145: 三福高速公路 | G145: 2004 | H145: 1 | I145: 台 | J145: 淘汰 | K145: 292665.03 | L145: 8779.95 | M145: 600.00
A146: 14 | B146: 洋中 | C146: 150101N102040003 | D146: 光纤网络单元（ONU) | E146: 烽火 | F146: 三福高速公路 | G146: 2004 | H146: 3 | I146: 台 | J146: 淘汰 | K146: 536036.91 | L146: 16081.11 | M146: 1800.00
A147: 15 | B147: 洋中 | C147: 150101N102040003 | D147: 高频开关组合电源（48V)120A | E147: DUM158-48/35-140 | F147: 三福高速公路 | G147: 2004 | H147: 1 | I147: 台 | J147: 更新淘汰 | K147: 78165.00 | L147: 2344.95 | M147: 20.00
A148: 16 | B148: 洋中 | C148: 150101N102040003 | D148: 高频开关组合电源（48V)30A | E148: DUM160-48/10-30 | F148: 三福高速公路 | G148: 2004 | H148: 3 | I148: 台 | J148: 更新淘汰 | K148: 113993.97 | L148: 3419.82 | M148: 60.00
A149: 17 | B149: 洋中废品库 | D149: 显示器 | E149: 惠普17寸 | F149: 三福高速公路 | G149: 2004 | H149: 1 | I149: 台 | J149: 故障淘汰 | K149: 1748.15 | L149: 52.44 | M149: 20.00
A150: 18 | B150: 大排废品库 | D150: 风机软启板 | E150: ABB PSPCB-LV/T-T | F150: 三福高速公路 | G150: 2004 | H150: 8 | I150: 块 | J150: 故障淘汰 | K150: 32000.00 | L150: 960.00 | M150: 160.00
A151: 19 | B151: 大排废品库 | D151: 风机高压板 | E151: ABB PSPCB-690/T-T | F151: 三福高速公路 | G151: 2004 | H151: 1 | I151: 块 | J151: 故障淘汰 | K151: 2674.00 | L151: 80.22 | M151: 12.00
A152: 20 | B152: 洋中 | D152: PLC | E152: S7-300 CPU313C-2 DP | F152: 三福高速公路 | G152: 2004 | H152: 1 | I152: 块 | J152: 淘汰 | K152: 8200.00 | L152: 246.00 | M152: 30.00
A153: 21 | B153: 洋中 | D153: PLC电源模块 | E153: PS307 5A | F153: 三福高速公路 | G153: 2004 | H153: 2 | I153: 块 | J153: 淘汰 | K153: 1050.00 | L153: 31.50 | M153: 4.00
A154: 22 | B154: 洋中 | D154: 光纤收发器 | E154: 1120-2E-1S(B) | F154: 三福高速公路 | G154: 2004 | H154: 1 | I154: 台 | J154: 淘汰 | K154: 1200.00 | L154: 36.00 | M154: 1.00
A155: 23 | B155: 洋中 | D155: 硬盘 | E155: 4T ST4000VM000 | F155: 三福高速公路 | G155: 2004 | H155: 5 | I155: 块 | J155: 淘汰 | K155: 3750.00 | L155: 112.50 | M155: 0.00 | N155: 不含硬盘
A156: 24 | B156: 洋中 | D156: 火灾报警综合 | E156: FWLZ-05D | F156: 三福高速公路 | G156: 2004 | H156: 1 | I156: 台 | J156: 淘汰 | K156: 11349.00 | L156: 340.47 | M156: 35.00
A157: 25 | B157: 洋中 | D157: 火灾报警综合盘 | E157: FWLZ-05D | F157: 三福高速公路 | G157: 2004 | H157: 22 | I157: 台 | J157: 淘汰 | K157: 249678.00 | L157: 7490.34 | M157: 770.00
A158: 26 | B158: 洋中 | D158: 火灾报警综合盘 | E158: FWLZ-05D | F158: 三福高速公路 | G158: 2004 | H158: 20 | I158: 台 | J158: 淘汰 | K158: 226980.00 | L158: 6809.40 | M158: 700.00
A159: 27 | B159: 洋中 | D159: 火灾报警综合盘 | E159: FWLZ-05D | F159: 三福高速公路 | G159: 2004 | H159: 4 | I159: 台 | J159: 淘汰 | K159: 45396.00 | L159: 1361.88 | M159: 140.00
A160: 28 | B160: 洋中 | D160: 超声波信号处理模块 | E160: 交调设备 | F160: 三福高速公路 | G160: 2004 | H160: 1 | I160: 台 | J160: 淘汰 | K160: 500.00 | L160: 15.00 | M160: 2.00
A161: 29 | B161: 洋中 | D161: 通道信号放大模块 | E161: 交调设备 | F161: 三福高速公路 | G161: 2004 | H161: 1 | I161: 台 | J161: 淘汰 | K161: 500.00 | L161: 15.00 | M161: 2.00
A162: 30 | B162: 洋中 | D162: 显示器 | E162: 17寸液晶屏 | F162: 三福高速公路 | G162: 2004 | H162: 1 | I162: 台 | J162: 淘汰 | K162: 620.00 | L162: 18.60 | M162: 20.00
A163: 31 | B163: 洋中 | D163: 电话机 | E163: TCL | F163: 三福高速公路 | G163: 2004 | H163: 1 | I163: 台 | J163: 淘汰 | K163: 49.00 | L163: 1.47 | M163: 1.00
A164: 32 | B164: 大排 | D164: 主机 | E164: XW4100 | F164: 三福高速公路 | G164: 2004 | H164: 3 | I164: 台 | J164: 淘汰 | K164: 9000.00 | L164: 270.00 | M164: 300.00 | N164: 不含硬盘
A165: 33 | B165: 大排 | D165: 服务器 | E165: Proliant ML 350 | F165: 三福高速公路 | G165: 2004 | H165: 2 | I165: 台 | J165: 淘汰 | K165: 49672.86 | L165: 1490.19 | M165: 300.00 | N165: 不含硬盘
A166: 34 | B166: 大排 | D166: 主机 | E166: D220MT | F166: 三福高速公路 | G166: 2004 | H166: 1 | I166: 台 | J166: 淘汰 | K166: 3500.00 | L166: 105.00 | M166: 100.00 | N166: 不含硬盘
A167: 35 | B167: 大排 | D167: 硬盘录像机 | E167: HP | F167: 三福高速公路 | G167: 2004 | H167: 1 | I167: 台 | J167: 淘汰 | K167: 3500.00 | L167: 105.00 | M167: 10.00 | N167: 不含硬盘
A168: 36 | B168: 大排 | D168: 工控机 | E168: IPL-610H-6006LV-P4-2-06T | F168: 三福高速公路 | G168: 2004 | H168: 2 | I168: 台 | J168: 淘汰 | K168: 14000.00 | L168: 420.00 | M168: 120.00 | N168: 不含硬盘
A169: 37 | B169: 大排 | D169: 主机 | E169: 4LV150BLP7 | F169: 三福高速公路 | G169: 2004 | H169: 1 | I169: 台 | J169: 淘汰 | K169: 5000.00 | L169: 150.00 | M169: 100.00 | N169: 不含硬盘
A170: 38 | B170: 大排 | D170: 光端机 | E170: OB9961DR | F170: 三福高速公路 | G170: 2004 | H170: 1 | I170: 台 | J170: 淘汰 | K170: 2000.00 | L170: 60.00 | M170: 20.00
A171: 39 | B171: 大排 | D171: 工控机 | E171: 新大陆 | F171: 三福高速公路 | G171: 2004 | H171: 11 | I171: 台 | J171: 淘汰 | K171: 80300.00 | L171: 2409.00 | M171: 1155.00 | N171: 不含硬盘
A172: 40 | B172: 大排 | D172: 费显 | E172: 华工定制 | F172: 三福高速公路 | G172: 2004 | H172: 2 | I172: 台 | J172: 淘汰 | K172: 14410.00 | L172: 432.30 | M172: 106.00
A173: 41 | B173: 大排 | D173: 摄像机 | E173: 高德威 | F173: 三福高速公路 | G173: 2004 | H173: 12 | I173: 台 | J173: 淘汰 | K173: 75600.00 | L173: 2268.00 | M173: 1056.00
A174: 42 | B174: 大排 | D174: 票据打印机 | E174: STAR | F174: 三福高速公路 | G174: 2004 | H174: 5 | I174: 台 | J174: 淘汰 | K174: 16380.00 | L174: 491.40 | M174: 25.00
A175: 43 | B175: 大排 | D175: 旧读写卡机 | F175: 三福高速公路 | G175: 2004 | H175: 1 | I175: 台 | J175: 淘汰 | K175: 6200.00 | L175: 186.00 | M175: 5.00
A176: 44 | B176: 大排 | D176: 监视器 | E176: TCL | F176: 三福高速公路 | G176: 2004 | H176: 2 | I176: 台 | J176: 淘汰 | K176: 6976.12 | L176: 209.28 | M176: 100.00
A177: 45 | B177: 大排 | C177: 150101N102040013 | D177: 两车道检测器 | F177: 三福高速公路 | G177: 2004 | H177: 7 | I177: 台 | J177: 淘汰 | K177: 101777.13 | L177: 3053.31 | M177: 28.00
A178: 46 | B178: 洋中 | D178: UPS主机 | E178: 科华 | F178: 三福高速公路 | G178: 2004 | H178: 2 | I178: 台 | J178: 淘汰 | K178: 6000.00 | L178: 180.00 | M178: 260.00
A179: 47 | B179: 大排 | D179: 球机 | E179: 海康威视 | F179: 三福高速公路 | G179: 2004 | H179: 1 | I179: 台 | J179: 淘汰 | K179: 6700.00 | L179: 201.00 | M179: 24.00
A180: 48 | B180: 大排 | D180: 反监控半球机 | E180: 三星 | F180: 三福高速公路 | G180: 2004 | H180: 1 | I180: 台 | J180: 淘汰 | K180: 1620.00 | L180: 48.60 | M180: 14.00
A181: 49 | B181: 大排 | D181: 数字视频光端机（接收端）-1U | E181: DDT-B-080-1D | F181: 三福高速公路 | G181: 2004 | H181: 2 | I181: 台 | J181: 淘汰 | K181: 15600.00 | L181: 468.00 | M181: 92.00
A182: 50 | B182: 大排 | D182: 球机 | E182: 海康 | F182: 三福高速公路 | G182: 2004 | H182: 4 | I182: 台 | J182: 淘汰 | K182: 32000.00 | L182: 960.00 | M182: 96.00
A183: 51 | B183: 大排 | D183: 枪机 | E183: 高德威 | F183: 三福高速公路 | G183: 2004 | H183: 4 | I183: 台 | J183: 淘汰 | K183: 25200.00 | L183: 756.00 | M183: 84.00
A184: 52 | B184: 大排 | D184: 车道指示器 | E184: 三思 不带转向 | F184: 三福高速公路 | G184: 2004 | H184: 16 | I184: 台 | J184: 淘汰 | K184: 3200.00 | L184: 96.00 | M184: 560.00
A185: 53 | B185: 大排 | D185: 车道指示器 | E185: 三思 带转向 | F185: 三福高速公路 | G185: 2004 | H185: 40 | I185: 台 | J185: 淘汰 | K185: 24000.00 | L185: 720.00 | M185: 2800.00
A186: 废旧钢铁类
A187: 54 | B187: 大排 | C187: 150101N102040002 | D187: 自动发卡机 | E187: 广东电子所 | F187: 三福高速公路 | G187: 2008 | H187: 2 | I187: 台 | J187: 淘汰 | K187: 315325.24 | L187: 9459.76 | M187: 1400.00
A188: 55 | B188: 大排 | D188: 自动发卡机壳 | E188: 广东电子所 | F188: 三福高速公路 | G188: 2008 | H188: 2 | I188: 台 | J188: 淘汰 | K188: 10000.00 | L188: 300.00 | M188: 700.00
A189: 56 | B189: 大排 | D189: LC柜子 | E189: 定制 | F189: 三福高速公路 | G189: 2004 | H189: 14 | I189: 台 | J189: 淘汰 | K189: 2800.00 | L189: 784.00 | M189: 1260.00
A190: 57 | B190: 洋中 | D190: 空调压缩机 | E190: KF-32W | F190: 三福高速公路 | G190: 2004 | H190: 1 | I190: 台 | J190: 淘汰 | K190: 800.00 | L190: 24.00 | M190: 26.00
A191: 58 | B191: 洋中 | D191: 法兰头（ODTR） | E191: 安立 | F191: 三福高速公路 | G191: 2004 | H191: 1 | I191: 台 | J191: 淘汰 | K191: 285.00 | L191: 8.55 | M191: 1.00
A192: 59 | B192: 大排 | C192: 150101N10206010005 | D192: 自动栏杆机 | E192: U创 | F192: 三福高速公路 | G192: 2004 | H192: 5 | I192: 台 | J192: 淘汰 | K192: 38605.00 | L192: 1158.15 | M192: 590.00
A193: 以上权属：三明福银高速公路有限责任公司（一期） | H193: =SUM(H7:H192) -> 2539 | K193: =SUM(K7:K192) -> 12769420.97 | L193: =SUM(L7:L192) -> 383782.63 | M193: =SUM(M7:M192) -> 270080.00
A194: 三、将乐机维站
A195: 变压器类
A196: 1 | B196: 三明北所 | C196: 150201N102040005 | D196: 变压器 | E196: S11-M-RD-100 | F196: 福银高速公路 | G196: 2004年 | H196: 1 | I196: 台 | J196: 故障淘汰 | K196: 92856.32 | L196: 2785.69 | M196: 5652.00
A197: 2 | B197: 三明北所 | C197: 150201N102040005 | D197: 变压器 | E197: S11-M-RD-50 | F197: 福银高速公路 | G197: 2006年 | H197: 1 | I197: 台 | J197: 图纸设计 | K197: 82988.45 | L197: 2489.65 | M197: 4464.00
A198: 灯具类
A199: 3 | B199: 将乐706套 万安侧房5套 | D199: 隧道应急灯 | E199: TL7-100E | F199: 福银高速公路 | G199: 2005年 | H199: 711 | I199: 盏 | J199: 工程拆卸入库 | K199: 691966.53 | L199: 20759.00 | M199: 113049.00
A200: 4 | B200: 万安侧房 | D200: 顶棚灯 | E200: 定制 | F200: 福银高速公路 | G200: 2005年 | H200: 5 | I200: 盏 | J200: 工程拆卸入库 | K200: 1925.00 | L200: 57.75 | M200: 25.00
... 521 more rows
